fUSD/lending_fUSD_20260515
["ID","MTS","AMOUNT","RATE_DAILY","PERIOD"]
[422331313,1778832639000,-300.0,0.00014999,2]
[422331309,1778832639000,-258.23081659,0.0001499,2]
[422331310,1778832639000,-2830.51560034,0.00014994,2]
[422331306,1778832639000,-154.13236171,0.00014986,2]
[422331307,1778832639000,-256.94184861,0.00014986,2]
[422331314,1778832639000,-666.0,0.00014999,2]
[422331312,1778832639000,-190.43180029,0.00014999,2]
[422331287,1778832639000,-200.0,0.0001488,2]
[422331308,1778832639000,-258.23081659,0.0001499,2]
[422331298,1778832639000,-314.03559052,0.00014949,2]
[422331284,1778832639000,-11679.14876709,0.00014868,2]
[422331260,1778832639000,-5000.0,0.00014749,2]
[422331290,1778832639000,-1928.4816,0.000149,2]
[422331316,1778832639000,-666.0,0.00014999,2]
[422331268,1778832639000,-11679.14876709,0.00014804,2]
[422331259,1778832639000,-757.31024118,0.00014749,2]
[422331265,1778832639000,-500.0,0.00014795,2]
[422331261,1778832639000,-152.0,0.00014753,7]
[422331263,1778832639000,-11679.14876709,0.00014772,2]
[422331264,1778832639000,-47330.66679472,0.00014787,2]
[422331262,1778832639000,-47330.66679472,0.00014758,2]
[422331267,1778832639000,-160.37012445,0.000148,2]
[422331266,1778832639000,-420.0,0.00014796,2]
[422331269,1778832639000,-47330.66679472,0.00014815,2]
[422331270,1778832639000,-150.0,0.0001482,2]
[422331273,1778832639000,-11679.14876709,0.00014836,2]
[422331275,1778832639000,-500.0,0.00014848,2]
[422331271,1778832639000,-1637.93852583,0.00014827,2]
[422331272,1778832639000,-1200.0,0.00014835,2]
[422331274,1778832639000,-258.23081659,0.00014839,2]
[422331277,1778832639000,-500.0,0.00014848,2]
[422331278,1778832639000,-500.0,0.00014848,2]
[422331276,1778832639000,-493.7165212,0.00014848,2]
[422331279,1778832639000,-293.7457917,0.00014848,2]
[422331281,1778832639000,-2206148.4944,0.00014849,2]
[422331285,1778832639000,-200.0,0.00014879,2]
[422331280,1778832639000,-389.0,0.00014849,5]
[422331286,1778832639000,-1000.0,0.0001488,2]
[422331291,1778832639000,-2000.0,0.000149,2]
[422331283,1778832639000,-1637.93852583,0.00014864,2]
[422331288,1778832639000,-255.0,0.00014898,2]
[422331319,1778832639000,-666.0,0.00014999,2]
[422331352,1778832639000,-500.0,0.00015,2]
[422331320,1778832639000,-300.0,0.00014999,2]
[422331346,1778832639000,-500.0,0.00015,2]
[422331349,1778832639000,-500.0,0.00015,2]
[422331355,1778832639000,-500.0,0.00015,2]
[422331366,1778832639000,-500.0,0.00015,2]
[422331357,1778832639000,-500.0,0.00015,2]
[422331356,1778832639000,-500.0,0.00015,2]
[422331354,1778832639000,-500.0,0.00015,2]
[422331358,1778832639000,-500.0,0.00015,2]
[422331359,1778832639000,-500.0,0.00015,2]
[422331361,1778832639000,-500.0,0.00015,2]
[422331360,1778832639000,-500.0,0.00015,2]
[422331363,1778832639000,-500.0,0.00015,2]
[422331351,1778832639000,-500.0,0.00015,2]
[422331364,1778832639000,-500.0,0.00015,2]
[422331367,1778832639000,-500.0,0.00015,2]
[422331369,1778832639000,-500.0,0.00015,2]
[422331372,1778832639000,-500.0,0.00015,2]
[422331373,1778832639000,-500.0,0.00015,2]
[422331371,1778832639000,-500.0,0.00015,2]
[422331370,1778832639000,-500.0,0.00015,2]
[422331368,1778832639000,-500.0,0.00015,2]
[422331374,1778832639000,-500.0,0.00015,2]
[422331375,1778832639000,-500.0,0.00015,2]
[422331376,1778832639000,-500.0,0.00015,2]
[422331377,1778832639000,-500.0,0.00015,2]
[422331318,1778832639000,-666.0,0.00014999,2]
[422331362,1778832639000,-500.0,0.00015,2]
[422331347,1778832639000,-500.0,0.00015,2]
[422331365,1778832639000,-500.0,0.00015,2]
[422331350,1778832639000,-500.0,0.00015,2]
[422331317,1778832639000,-300.0,0.00014999,2]
[422331323,1778832639000,-158.12258862,0.00015,2]
[422331326,1778832639000,-173.265539,0.00015,2]
[422331327,1778832639000,-151.0,0.00015,2]
[422331324,1778832639000,-1017.0,0.00015,2]
[422331322,1778832639000,-1595157.86123314,0.00015,2]
[422331328,1778832639000,-151.0,0.00015,2]
[422331321,1778832639000,-300.0,0.00014999,2]
[422331348,1778832639000,-500.0,0.00015,2]
[422331330,1778832639000,-151.0,0.00015,2]
[422331329,1778832639000,-151.0,0.00015,2]
[422331331,1778832639000,-500.0,0.00015,2]
[422331334,1778832639000,-500.0,0.00015,2]
[422331340,1778832639000,-500.0,0.00015,2]
[422331325,1778832639000,-151.0,0.00015,2]
[422331332,1778832639000,-500.0,0.00015,2]
[422331333,1778832639000,-500.0,0.00015,2]
[422331344,1778832639000,-500.0,0.00015,2]
[422331353,1778832639000,-500.0,0.00015,2]
[422331341,1778832639000,-500.0,0.00015,2]
[422331343,1778832639000,-500.0,0.00015,2]
[422331345,1778832639000,-500.0,0.00015,2]
[422331335,1778832639000,-500.0,0.00015,2]
[422331338,1778832639000,-500.0,0.00015,2]
[422331337,1778832639000,-500.0,0.00015,2]
[422331336,1778832639000,-500.0,0.00015,2]
[422331339,1778832639000,-500.0,0.00015,2]
[422331342,1778832639000,-500.0,0.00015,2]
[422331385,1778832640000,-500.0,0.00015,2]
[422331379,1778832640000,-500.0,0.00015,2]
[422331386,1778832640000,-500.0,0.00015,2]
[422331383,1778832640000,-500.0,0.00015,2]
[422331387,1778832640000,-500.0,0.00015,2]
[422331384,1778832640000,-500.0,0.00015,2]
[422331381,1778832640000,-500.0,0.00015,2]
[422331380,1778832640000,-500.0,0.00015,2]
[422331388,1778832640000,-500.0,0.00015,2]
[422331378,1778832640000,-500.0,0.00015,2]
[422331389,1778832640000,-500.0,0.00015,2]
[422331382,1778832640000,-500.0,0.00015,2]
[422331392,1778832640000,-500.0,0.00015,2]
[422331404,1778832640000,-6442246.13519936,0.00015,2]
[422331393,1778832640000,-500.0,0.00015,2]
[422331405,1778832640000,-615.21547425,0.00015,2]
[422331403,1778832640000,-500.0,0.00015,2]
[422331402,1778832640000,-500.0,0.00015,2]
[422331398,1778832640000,-500.0,0.00015,2]
[422331396,1778832640000,-500.0,0.00015,2]
[422331401,1778832640000,-500.0,0.00015,2]
[422331397,1778832640000,-500.0,0.00015,2]
[422331394,1778832640000,-500.0,0.00015,2]
[422331399,1778832640000,-500.0,0.00015,2]
[422331400,1778832640000,-500.0,0.00015,2]
[422331391,1778832640000,-500.0,0.00015,2]
[422331395,1778832640000,-500.0,0.00015,2]
[422331390,1778832640000,-500.0,0.00015,2]
[422331408,1778832641000,-30093.99196174,0.00015,2]
[422331407,1778832641000,-14013.67119661,0.00015,2]
[422331406,1778832641000,-794.84235015,0.00015,2]
[422331414,1778832643000,-2430.74259512,0.00014576,2]
[422331416,1778832643000,-18869.28435533,0.00014576,2]
[422331417,1778832643000,-14575.44275074,0.00014843,2]
[422331418,1778832643000,-800.00494912,0.00014843,2]
[422331415,1778832643000,-8985.53654955,0.00014576,2]
[422331422,1778832646000,-305.22,0.00014843,2]
[422331431,1778832650000,152.0,0.00013442,7]
[422331432,1778832651000,152.0,0.00013446,7]
[422331453,1778832914000,-194.784,0.0001392,2]
[422331454,1778832914000,-150.0,0.00013968,2]
[422331452,1778832914000,-2233.73,0.00013773,2]
[422331451,1778832914000,-214.997284,0.00013764,2]
[422331450,1778832914000,-294.75451596,0.00013749,2]
[422331448,1778832914000,-300.0,0.00013749,2]
[422331449,1778832914000,-300.0,0.00013749,2]
[422331447,1778832914000,-300.0,0.00013749,2]
[422331446,1778832914000,-300.0,0.00013749,2]
[422331443,1778832914000,-300.0,0.00013749,2]
[422331441,1778832914000,-1200.0,0.00013748,2]
[422331444,1778832914000,-300.0,0.00013749,2]
[422331456,1778832914000,-150.0,0.00013969,2]
[422331442,1778832914000,-300.0,0.00013748,2]
[422331438,1778832914000,-152.0,0.00010242,2]
[422331440,1778832914000,-300.0,0.00013748,2]
[422331439,1778832914000,-212.885403,0.00013679,2]
[422331445,1778832914000,-300.0,0.00013749,2]
[422331455,1778832914000,-703.36675665,0.00013969,2]
[422331473,1778832914000,-238.96377527,0.00014203,2]
[422331458,1778832914000,-2500.0,0.00013969,2]
[422331460,1778832914000,-2500.0,0.00013969,2]
[422331476,1778832914000,-967519.54915155,0.00014204,2]
[422331475,1778832914000,-500.0,0.00014203,2]
[422331474,1778832914000,-622.93417796,0.00014203,2]
[422331469,1778832914000,-500.0,0.00014203,2]
[422331467,1778832914000,-500.0,0.00014203,2]
[422331471,1778832914000,-500.0,0.00014203,2]
[422331470,1778832914000,-500.0,0.00014203,2]
[422331472,1778832914000,-500.0,0.00014203,2]
[422331465,1778832914000,-500.0,0.00014203,2]
[422331466,1778832914000,-500.0,0.00014203,2]
[422331464,1778832914000,-247.97,0.00014022,2]
[422331462,1778832914000,-2500.0,0.00013969,2]
[422331463,1778832914000,-5958.05079526,0.0001399,2]
[422331459,1778832914000,-2500.0,0.00013969,2]
[422331457,1778832914000,-206.01414035,0.00013969,2]
[422331461,1778832914000,-2500.0,0.00013969,2]
[422331468,1778832914000,-500.0,0.00014203,2]
[422331477,1778832950000,152.0,0.00013459,7]
[422331480,1778833174000,156.75,6.884e-05,2]
[422331481,1778833246000,152.0,0.00013457,7]
[422331483,1778833541000,500.0,0.00029452,120]
[422331506,1778833832000,-1200.0,0.00013428,2]
[422331495,1778833832000,-889.89658391,0.00012757,2]
[422331496,1778833832000,-729.78136239,0.00012757,2]
[422331497,1778833832000,-550.8820537,0.00012757,2]
[422331499,1778833832000,-150.0,0.00013066,2]
[422331498,1778833832000,-345.42,0.00012757,2]
[422331504,1778833832000,-160.0,0.00013398,2]
[422331507,1778833832000,-1701.7779463,0.0001343,2]
[422331501,1778833832000,-1321.88,0.00013353,2]
[422331500,1778833832000,-172.09,0.00013244,2]
[422331513,1778833832000,-2566.60401429,0.0001343,2]
[422331505,1778833832000,-300.0,0.00013427,2]
[422331503,1778833832000,-2000.0,0.00013386,2]
[422331508,1778833832000,-456.00465215,0.0001343,2]
[422331509,1778833832000,-895.41,0.0001343,2]
[422331510,1778833832000,-3818.60026185,0.0001343,2]
[422331515,1778833832000,-901.23418243,0.0001343,2]
[422331517,1778833832000,-1237.08734021,0.0001343,2]
[422331520,1778833832000,-363.22867442,0.0001343,2]
[422331502,1778833832000,-160.35,0.00013378,2]
[422331573,1778833838000,-300.0,0.00014033,2]
[422331571,1778833838000,-300.0,0.00014033,2]
[422331582,1778833838000,-500.0,0.00014223,2]
[422331565,1778833838000,-727.439,0.00014019,2]
[422331569,1778833838000,-2500.0,0.00014033,2]
[422331566,1778833838000,-2500.0,0.00014033,2]
[422331575,1778833838000,-300.0,0.00014033,2]
[422331592,1778833838000,-152.1154947,0.00014223,2]
[422331576,1778833838000,-556.6236,0.00014104,2]
[422331579,1778833838000,-172.09,0.00014127,2]
[422331581,1778833838000,-500.0,0.00014223,2]
[422331577,1778833838000,-166.66,0.0001411,2]
[422331580,1778833838000,-214.68143985,0.00014195,2]
[422331578,1778833838000,-9999.99,0.00014114,2]
[422331583,1778833838000,-500.0,0.00014223,2]
[422331585,1778833838000,-500.0,0.00014223,2]
[422331584,1778833838000,-150.0,0.00014223,2]
[422331586,1778833838000,-500.0,0.00014223,2]
[422331574,1778833838000,-300.0,0.00014033,2]
[422331560,1778833838000,-200.0,0.00013699,2]
[422331546,1778833838000,-2256.21592467,0.0001343,2]
[422331568,1778833838000,-2500.0,0.00014033,2]
[422331547,1778833838000,-2002.92095852,0.0001343,2]
[422331548,1778833838000,-784.32718423,0.0001343,2]
[422331550,1778833838000,-312.96,0.00013463,2]
[422331551,1778833838000,-156.75,0.00013499,2]
[422331549,1778833838000,-13390.73886093,0.0001343,2]
[422331552,1778833838000,-150.99,0.00013499,2]
[422331558,1778833838000,-150.0,0.00013639,2]
[422331553,1778833838000,-173.62,0.00013603,2]
[422331570,1778833838000,-2500.0,0.00014033,2]
[422331554,1778833838000,-150.0,0.00013607,2]
[422331555,1778833838000,-595.66,0.00013608,2]
[422331557,1778833838000,-3785.97,0.00013608,2]
[422331559,1778833838000,-172.09,0.00013686,2]
[422331563,1778833838000,-166.66,0.00013973,2]
[422331562,1778833838000,-166.66,0.00013836,2]
[422331561,1778833838000,-166.66,0.00013699,2]
[422331564,1778833838000,-250.0,0.00014,2]
[422331567,1778833838000,-2500.0,0.00014033,2]
[422331556,1778833838000,-1244.67,0.00013608,2]
[422331594,1778833838000,-500.0,0.00014223,2]
[422331572,1778833838000,-300.0,0.00014033,2]
[422331595,1778833838000,-500.0,0.00014223,2]
[422331619,1778833838000,-172.58069407,0.00014257,2]
[422331614,1778833838000,-500.0,0.00014257,2]
[422331620,1778833838000,-150.0,0.00014257,2]
[422331615,1778833838000,-500.0,0.00014257,2]
[422331618,1778833838000,-500.0,0.00014257,2]
[422331621,1778833838000,-166.66,0.00014384,2]
[422331624,1778833838000,-172.09,0.00014568,2]
[422331623,1778833838000,-150.0,0.00014531,2]
[422331617,1778833838000,-500.0,0.00014257,2]
[422331625,1778833838000,-2000.0,0.00014576,2]
[422331632,1778833838000,-500.0,0.00014726,2]
[422331626,1778833838000,-420.0,0.00014719,2]
[422331633,1778833838000,-500.0,0.00014726,2]
[422331631,1778833838000,-500.0,0.00014726,2]
[422331630,1778833838000,-500.0,0.00014726,2]
[422331629,1778833838000,-500.0,0.00014726,2]
[422331628,1778833838000,-255.0,0.00014723,2]
[422331596,1778833838000,-500.0,0.00014223,2]
[422331627,1778833838000,-1680.0,0.0001472,2]
[422331616,1778833838000,-500.0,0.00014257,2]
[422331634,1778833838000,-439.10728653,0.00014726,2]
[422331622,1778833838000,-151.35810964,0.00014451,2]
[422331587,1778833838000,-150.0,0.00014223,2]
[422331612,1778833838000,-500.0,0.00014257,2]
[422331591,1778833838000,-531.51017441,0.00014223,2]
[422331593,1778833838000,-500.0,0.00014223,2]
[422331598,1778833838000,-166.66,0.00014247,2]
[422331609,1778833838000,-500.0,0.00014257,2]
[422331604,1778833838000,-500.0,0.00014257,2]
[422331610,1778833838000,-500.0,0.00014257,2]
[422331608,1778833838000,-317.26173353,0.00014257,2]
[422331597,1778833838000,-520.53619171,0.00014223,2]
[422331589,1778833838000,-500.0,0.00014223,2]
[422331603,1778833838000,-500.0,0.00014257,2]
[422331601,1778833838000,-500.0,0.00014257,2]
[422331611,1778833838000,-500.0,0.00014257,2]
[422331607,1778833838000,-244.0,0.00014257,2]
[422331606,1778833838000,-500.0,0.00014257,2]
[422331613,1778833838000,-500.0,0.00014257,2]
[422331605,1778833838000,-500.0,0.00014257,2]
[422331602,1778833838000,-500.0,0.00014257,2]
[422331600,1778833838000,-11324.308148,0.00014249,2]
[422331640,1778833839000,-162.0,0.0001488,2]
[422331652,1778833839000,-502.0,0.00014904,2]
[422331647,1778833839000,-153.53198692,0.000149,2]
[422331650,1778833839000,-2023.96680234,0.000149,2]
[422331648,1778833839000,-1398.54154583,0.000149,2]
[422331649,1778833839000,-689.61332266,0.000149,2]
[422331646,1778833839000,-766.36417764,0.000149,2]
[422331645,1778833839000,-190.69280232,0.000149,2]
[422331644,1778833839000,-12631.13326843,0.00014897,2]
[422331641,1778833839000,-273.0,0.0001488,2]
[422331642,1778833839000,-200.0,0.0001488,2]
[422331638,1778833839000,-166.0,0.00014856,2]
[422331637,1778833839000,-28953.05234588,0.0001485,2]
[422331636,1778833839000,-1255.42650312,0.000148,2]
[422331635,1778833839000,-155.828,0.00014786,2]
[422331653,1778833839000,-254.81376594,0.00014987,2]
[422331639,1778833839000,-200.0,0.00014879,2]
[422331651,1778833839000,-371.35769708,0.000149,2]
[422331643,1778833839000,-5000.0,0.00014892,2]
[422331656,1778833839000,-151.0,0.00014997,2]
[422331672,1778833839000,-524.74506,0.00015,2]
[422331668,1778833839000,-2076.06689717,0.00015,2]
[422331665,1778833839000,-311.0,0.00015,5]
[422331664,1778833839000,-291.43713089,0.00014999,2]
[422331670,1778833839000,-8082.43942848,0.00015,2]
[422331669,1778833839000,-3144.531642,0.00015,14]
[422331663,1778833839000,-304.32930836,0.00014999,2]
[422331671,1778833839000,-327325.42209372,0.00015,2]
[422331667,1778833839000,-865406.00189778,0.00015,2]
[422331662,1778833839000,-405.62205419,0.00014999,2]
[422331660,1778833839000,-195.60156484,0.00014999,2]
[422331659,1778833839000,-500.0,0.00014999,2]
[422331661,1778833839000,-500.0,0.00014999,2]
[422331658,1778833839000,-197.38227338,0.00014999,2]
[422331655,1778833839000,-279247.4739528,0.00014992,2]
[422331654,1778833839000,-3031.395577,0.00014992,2]
[422331666,1778833839000,-249.0,0.00015,5]
[422331657,1778833839000,-151.0,0.00014997,2]
[422331675,1778833841000,-912069.06449692,0.00015,2]
[422331711,1778833843000,-254.0,0.00015,2]
[422331710,1778833843000,-162.0,0.0001488,2]
[422331700,1778833843000,-691.26866801,0.00015,2]
[422331698,1778833843000,-162.0,0.0001488,2]
[422331709,1778833843000,-805.66,0.00015,2]
[422331715,1778833846000,-351.07362371,0.00015,2]
[422331716,1778833846000,-839.549,0.00015,2]
[422331721,1778833922000,157.0,0.000301,120]
[422331722,1778833941000,174.1,8.289e-05,2]
[422331724,1778834446000,402.88,0.00030137,120]
[422331725,1778834541000,408.01546149,0.00030136,120]
[422331726,1778834937000,174.1,6.794e-05,2]
[422331733,1778835032000,-624.64747734,0.000136,2]
[422331730,1778835032000,-150.0,0.00013558,2]
[422331734,1778835032000,-206.64,0.000136,2]
[422331735,1778835032000,-375.67335051,0.00013615,2]
[422331732,1778835032000,-139.17252266,0.000136,2]
[422331731,1778835032000,-250.0,0.00013579,2]
[422331737,1778835032000,-166.66,0.00013699,2]
[422331739,1778835032000,-150.0,0.00013785,2]
[422331741,1778835032000,-300.0,0.000138,2]
[422331740,1778835032000,-891.0,0.000138,2]
[422331738,1778835032000,-166.23,0.0001372,2]
[422331742,1778835032000,-452.95857646,0.00013801,2]
[422331736,1778835032000,-285.26664949,0.00013615,2]
[422331769,1778835033000,-166.66,0.0001411,2]
[422331771,1778835033000,-166.66,0.00014384,2]
[422331772,1778835033000,-500.0,0.0001452,2]
[422331770,1778835033000,-166.66,0.00014247,2]
[422331773,1778835033000,-500.0,0.0001452,2]
[422331775,1778835033000,-500.0,0.0001452,2]
[422331776,1778835033000,-500.0,0.0001452,2]
[422331774,1778835033000,-500.0,0.0001452,2]
[422331779,1778835033000,-405.0,0.00014732,2]
[422331778,1778835033000,-405.0,0.00014726,2]
[422331768,1778835033000,-250.0,0.00014,2]
[422331780,1778835033000,-405.0,0.00014734,2]
[422331781,1778835033000,-405.0,0.00014742,2]
[422331782,1778835033000,-405.0,0.00014746,2]
[422331784,1778835033000,-405.0,0.00014755,2]
[422331783,1778835033000,-405.0,0.00014752,2]
[422331785,1778835033000,-405.0,0.00014756,2]
[422331786,1778835033000,-405.0,0.00014756,2]
[422331777,1778835033000,-405.0,0.00014725,2]
[422331767,1778835033000,-166.66,0.00013973,2]
[422331763,1778835033000,-1171.96449032,0.00013873,2]
[422331765,1778835033000,-1487.49,0.00013902,2]
[422331787,1778835033000,-405.0,0.00014757,2]
[422331746,1778835033000,-747.04142354,0.00013801,2]
[422331747,1778835033000,-826.36002642,0.00013801,2]
[422331748,1778835033000,-9173.62997358,0.00013801,2]
[422331749,1778835033000,-150.99,0.00013801,2]
[422331750,1778835033000,-30525.94418195,0.00013802,2]
[422331751,1778835033000,-739.83242181,0.00013802,2]
[422331752,1778835033000,-1294.64297778,0.00013802,2]
[422331753,1778835033000,-301.48251273,0.00013802,2]
[422331754,1778835033000,-750.32025234,0.00013802,2]
[422331755,1778835033000,-140814.59275339,0.00013802,2]
[422331756,1778835033000,-166.66,0.00013836,2]
[422331757,1778835033000,-200.0,0.00013854,2]
[422331758,1778835033000,-4625.3,0.00013854,2]
[422331760,1778835033000,-195.78,0.00013858,2]
[422331759,1778835033000,-155.828,0.00013855,2]
[422331761,1778835033000,-2000.0,0.00013864,2]
[422331762,1778835033000,-156.95,0.00013873,2]
[422331764,1778835033000,-11368.01994165,0.00013873,2]
[422331766,1778835033000,-32101.82,0.00013902,2]
[422331788,1778835033000,-405.0,0.0001476,2]
[422331806,1778835033000,-405.0,0.00014815,2]
[422331792,1778835033000,-405.0,0.00014773,2]
[422331814,1778835033000,-405.0,0.00014841,2]
[422331815,1778835033000,-405.0,0.00014842,2]
[422331816,1778835033000,-405.0,0.00014843,2]
[422331817,1778835033000,-405.0,0.00014843,2]
[422331818,1778835033000,-405.0,0.00014845,2]
[422331819,1778835033000,-405.0,0.00014849,2]
[422331820,1778835033000,-405.0,0.00014858,2]
[422331821,1778835033000,-405.0,0.0001486,2]
[422331822,1778835033000,-405.0,0.0001486,2]
[422331823,1778835033000,-405.0,0.00014862,2]
[422331827,1778835033000,-405.0,0.00014866,2]
[422331826,1778835033000,-282.34073411,0.00014863,2]
[422331824,1778835033000,-405.0,0.00014863,2]
[422331828,1778835033000,-405.0,0.0001487,2]
[422331831,1778835033000,-12.83715311,0.00014876,2]
[422331830,1778835033000,-242.92264734,0.00014875,2]
[422331829,1778835033000,-162.07735266,0.00014875,2]
[422331832,1778835033000,-389.16284689,0.00014876,2]
[422331789,1778835033000,-405.0,0.00014763,2]
[422331813,1778835033000,-405.0,0.00014837,2]
[422331812,1778835033000,-405.0,0.00014834,2]
[422331825,1778835033000,-119.65926589,0.00014863,2]
[422331810,1778835033000,-405.0,0.0001483,2]
[422331811,1778835033000,-405.0,0.00014832,2]
[422331791,1778835033000,-405.0,0.00014772,2]
[422331793,1778835033000,-405.0,0.00014774,2]
[422331794,1778835033000,-405.0,0.00014781,2]
[422331795,1778835033000,-405.0,0.00014784,2]
[422331796,1778835033000,-405.0,0.0001479,2]
[422331797,1778835033000,-405.0,0.00014794,2]
[422331799,1778835033000,-405.0,0.00014795,2]
[422331790,1778835033000,-405.0,0.00014764,2]
[422331798,1778835033000,-405.0,0.00014794,2]
[422331801,1778835033000,-405.0,0.00014799,2]
[422331803,1778835033000,-405.0,0.00014809,2]
[422331802,1778835033000,-405.0,0.00014802,2]
[422331804,1778835033000,-405.0,0.00014812,2]
[422331805,1778835033000,-405.0,0.00014814,2]
[422331833,1778835033000,-225.70618613,0.00014876,2]
[422331807,1778835033000,-405.0,0.00014821,2]
[422331808,1778835033000,-405.0,0.00014822,2]
[422331809,1778835033000,-405.0,0.0001483,2]
[422331800,1778835033000,-500.0,0.00014795,2]
[422331839,1778835034000,-340.88021911,0.00014885,2]
[422331836,1778835034000,-405.0,0.00014879,2]
[422331838,1778835034000,-405.0,0.00014881,2]
[422331834,1778835034000,-194.29381387,0.00014876,2]
[422331837,1778835034000,-200.0,0.0001488,2]
[422331835,1778835034000,-405.0,0.00014879,2]
[422331842,1778835034000,-405.0,0.00014892,2]
[422331841,1778835034000,-402.0,0.00014888,2]
[422331844,1778835034000,-2465.37251969,0.00014893,2]
[422331845,1778835034000,-550.00639416,0.00014893,2]
[422331843,1778835034000,-395.4832,0.00014892,2]
[422331846,1778835034000,-581.72491626,0.00014893,2]
[422331840,1778835034000,-64.11978089,0.00014885,2]
[422331859,1778835038000,-356.82281022,0.00014901,2]
[422331860,1778835038000,-214.36645979,0.00014902,2]
[422331855,1778835038000,-405.0,0.00014896,2]
[422331851,1778835038000,-956.62629937,0.00014893,2]
[422331864,1778835038000,-300.0,0.00014914,2]
[422331863,1778835038000,-250.0,0.00014914,2]
[422331853,1778835038000,-1023.7115787,0.00014893,2]
[422331862,1778835038000,-423.87109115,0.00014909,2]
[422331861,1778835038000,-40.63354021,0.00014902,2]
[422331852,1778835038000,-405.0,0.00014893,2]
[422331850,1778835038000,-446.26987052,0.00014893,2]
[422331854,1778835038000,-405.0,0.00014895,2]
[422331856,1778835038000,-405.0,0.00014896,2]
[422331874,1778835038000,-503.23019024,0.00014914,2]
[422331858,1778835038000,-48.17718978,0.00014901,2]
[422331857,1778835038000,-757.15189758,0.000149,2]
[422331877,1778835038000,-1610.17643426,0.00014914,2]
[422331876,1778835038000,-986.63522891,0.00014914,2]
[422331875,1778835038000,-1513.36477109,0.00014914,2]
[422331872,1778835038000,-1493.29243114,0.00014914,2]
[422331873,1778835038000,-503.47737862,0.00014914,2]
[422331871,1778835038000,-1424.25360146,0.00014914,2]
[422331870,1778835038000,-552.93113016,0.00014914,2]
[422331866,1778835038000,-300.0,0.00014914,2]
[422331867,1778835038000,-300.0,0.00014914,2]
[422331868,1778835038000,-172.07559324,0.00014914,2]
[422331865,1778835038000,-300.0,0.00014914,2]
[422331869,1778835038000,-522.81526838,0.00014914,2]
[422331912,1778835041000,-405.0,0.00014973,2]
[422331914,1778835041000,-405.0,0.0001498,2]
[422331907,1778835041000,-405.0,0.0001496,2]
[422331915,1778835041000,-158.0,0.0001499,5]
[422331917,1778835041000,-500.0,0.00014991,2]
[422331919,1778835041000,-19535.5117907,0.00014993,2]
[422331918,1778835041000,-52898.827956,0.00014993,2]
[422331931,1778835041000,-500.0,0.00014999,2]
[422331928,1778835041000,-500.0,0.00014999,2]
[422331929,1778835041000,-500.0,0.00014999,2]
[422331932,1778835041000,-500.0,0.00014999,2]
[422331913,1778835041000,-405.0,0.00014976,2]
[422331922,1778835041000,-405.0,0.00014994,2]
[422331930,1778835041000,-500.0,0.00014999,2]
[422331916,1778835041000,-211.03404089,0.0001499,2]
[422331905,1778835041000,-405.0,0.00014956,2]
[422331911,1778835041000,-405.0,0.00014972,2]